Workbook

Sheet ESTIMATE
C1: PROJECT: NEW CUSTOM HOME | K1: Web: http://sigmaestimations.com Email: info@sigmaestimations.com
C3: ADDRESS: 2361 LEO LANE, LEAGUE CITY, TEXAS 77573
A5: ITEM # | B5: DWG # | C5: CSI #/SUB DETAIL | D5: DESCRIPTION | E5: QTY. | F5: WASTE | G5: QTY. W/ WASTE | H5: UNIT | I5: UNIT LABOR | J5: UNIT MATERIAL | K5: TOTAL UNIT COST | L5: TOTAL COST | M5: TRADE COST
C6: 010000 | D6: DIVISION 01 — GENERAL REQUIREMENTS
A7: =IF(H7<>"",1+MAX(A1:A6),"") -> 1 | D7: Submittal Procedures | E7: 1 | F7: 0% | G7: =E7+(E7*F7) -> 1 | H7: LS | I7: 0 | J7: 0 | K7: =IF(H7<>"",I7+J7,"") -> 0 | L7: =G7*K7 -> 0
A8: =IF(H8<>"",1+MAX(A2:A7),"") -> 2 | D8: Temporary Facilities and Controls | E8: 1 | F8: 0% | G8: 1 | H8: LS | I8: 0 | J8: 0 | K8: 0 | L8: =G8*K8 -> 0
A9: 3 | D9: Closeout Procedures | E9: 1 | F9: 0% | G9: 1 | H9: LS | I9: 0 | J9: 0 | K9: =IF(H9<>"",I9+J9,"") -> 0 | L9: =G9*K9 -> 0
A10: 4 | D10: Payment Procedures | E10: 1 | F10: 0% | G10: 1 | H10: LS | I10: 0 | J10: 0 | K10: 0 | L10: =G10*K10 -> 0
A11: 5 | D11: Contract Modification Procedures | E11: 1 | F11: 0% | G11: 1 | H11: LS | I11: 0 | J11: 0 | K11: 0 | L11: 0
A12: =IF(H12<>"",1+MAX(A1:A11),"") -> 6 | D12: Maintenance & Traffic Protection | E12: 1 | F12: 0% | G12: 1 | H12: LS | I12: 0 | J12: 0 | K12: =IF(H12<>"",I12+J12,"") -> 0 | L12: =G12*K12 -> 0
A13: =IF(H13<>"",1+MAX(A2:A12),"") ->  | D13: SUBTOTAL | I13: =IF(H13<>"",0.4*K13,"") ->  | J13: =IF(H13<>"",K13-I13,"") ->  | M13: =SUM(L7:L12) -> 0
C14: 060000 | D14: DIVISION 06 — WOOD, PLASTICS & COMPOSITES | I14: =IF(H14<>"",0.4*K14,"") ->  | J14: =IF(H14<>"",K14-I14,"") -> 
D16: Wall Hardware
A17: 7 | B17: S401 | C17: S401 | D17: MSTC86-HLD-2 | E17: 20 | F17: 0% | G17: =E17+(E17*F17) -> 20 | H17: EA | I17: $19.50 | J17: $45.50 | K17: =IF(H17<>"",I17+J17,"") -> $65.00 | L17: =G17*K17 -> $1,300
A18: 8 | B18: S401 | C18: S401 | D18: HTT4-HLD-3 | E18: 35 | F18: 0% | G18: 35 | H18: EA | I18: $69.38 | J18: $161.88 | K18: $231.25 | L18: $8,094
A19: 9 | B19: S401 | C19: S401 | D19: HTT5-HLD-4 | E19: 10 | F19: 0% | G19: 10 | H19: EA | I19: $85.13 | J19: $198.63 | K19: $283.75 | L19: $2,838
D21: Wood Posts
A22: 10 | B22: S401 | C22: S401 | D22: 4x4 Wood Post(10'H) | E22: 65 | F22: 0% | G22: =E22+(E22*F22) -> 65 | H22: EA | I22: $20.80 | J22: $31.20 | K22: =IF(H22<>"",I22+J22,"") -> $52.00 | L22: =G22*K22 -> $3,380
D24: SUBTOTAL | M24: =SUM(L15:L23) -> $15,611
C25: 090000 | D25: DIVISION 09 — FINISHES
D27: Floor Finishes
D29: Flooring
A30: 11 | B30: A-103 | C30: A-104 | D30: Carpet Flooring | E30: 848 | F30: 5% | G30: =E30+(E30*F30) -> 890 | H30: SF | I30: $2.70 | J30: $4.06 | K30: =IF(H30<>"",I30+J30,"") -> $6.76 | L30: =G30*K30 -> $6,017
A31: 12 | B31: A-103 | C31: A-104 | D31: Ceramic Tile | E31: 738 | F31: 5% | G31: 774 | H31: SF | I31: $4.40 | J31: $9.60 | K31: $14.00 | L31: $10,842
A32: 13 | B32: A-103 | C32: A-104 | D32: Granite Flooring | E32: 298 | F32: 5% | G32: 313 | H32: SF | I32: $2.42 | J32: $3.63 | K32: $6.05 | L32: $1,893
A33: 14 | B33: A-103 | C33: A-104 | D33: Wood Flooring | E33: 1893 | F33: 5% | G33: 1988 | H33: SF | I33: $3.36 | J33: $5.04 | K33: $8.40 | L33: $16,696
A34: 15 | B34: A-103 | C34: A-104 | D34: Sealed Concrete | E34: 753 | F34: 5% | G34: 791 | H34: SF | I34: $1.41 | J34: $2.11 | K34: $3.52 | L34: $2,785
A35: 16 | B35: A-103 | C35: A-104 | D35: Laminate Flooring | E35: 8 | F35: 5% | G35: 9 | H35: SF | I35: $2.32 | J35: $3.48 | K35: $5.80 | L35: $50
D37: Note: Sealed Concrete And Laminate Flooring is Assumed at Garage and Fireplace.
D39: Wall Base
A40: 17 | B40: A-103 | C40: A-104 | D40: Resilient Base | E40: 211 | F40: 5% | G40: =E40+(E40*F40) -> 222 | H40: LF | I40: $0.75 | J40: $1.13 | K40: =IF(H40<>"",I40+J40,"") -> $1.88 | L40: =G40*K40 -> $417
A41: 18 | B41: A-103 | C41: A-104 | D41: Wood Base | E41: 457 | F41: 5% | G41: 480 | H41: LF | I41: $0.80 | J41: $1.20 | K41: $2.00 | L41: $960
A42: 19 | B42: A-103 | C42: A-104 | D42: Tile Base | E42: 202 | F42: 5% | G42: 212 | H42: LF | I42: $0.90 | J42: $1.34 | K42: $2.24 | L42: $474
D44: Note: All Wall Bases Assumed
D46: Transition Strip
A47: 20 | B47: A-103 | C47: A-104 | D47: Transition Strip Wood to Carpet Flooring | E47: 31 | F47: 5% | G47: =E47+(E47*F47) -> 33 | H47: LF | I47: $1.12 | J47: $1.68 | K47: =IF(H47<>"",I47+J47,"") -> $2.80 | L47: =G47*K47 -> $92
A48: 21 | B48: A-103 | C48: A-104 | D48: Transition Strip Granite to Wood Flooring | E48: 13 | F48: 5% | G48: 14 | H48: LF | I48: $1.12 | J48: $1.68 | K48: $2.80 | L48: $39
A49: 22 | B49: A-103 | C49: A-104 | D49: Transition Strip Ceramic to Wood Flooring | E49: 29 | F49: 5% | G49: 30 | H49: LF | I49: $1.12 | J49: $1.68 | K49: $2.80 | L49: $85
A50: 23 | B50: A-103 | C50: A-104 | D50: Transition Strip Ceramic to Carpet Flooring | E50: 8 | F50: 5% | G50: 9 | H50: LF | I50: $1.12 | J50: $1.68 | K50: $2.80 | L50: $25
A51: 24 | B51: A-103 | C51: A-104 | D51: Transition Strip Granite to Ceramic Flooring | E51: 17 | F51: 5% | G51: 18 | H51: LF | I51: $1.12 | J51: $1.68 | K51: $2.80 | L51: $51
A52: 25 | B52: A-103 | C52: A-104 | D52: Transition Sealed Concrete to Wood Flooring | E52: 15 | F52: 5% | G52: 15 | H52: LF | I52: $1.12 | J52: $1.68 | K52: $2.80 | L52: $43
A53: 26 | B53: A-103 | C53: A-104 | D53: Transition Laminate to Wood Flooring | E53: 3 | F53: 5% | G53: 3 | H53: LF | I53: $1.12 | J53: $1.68 | K53: $2.80 | L53: $9
D55: Note: Assumed
D57: Walls
D59: First Floor
D61: 2x6 Exterior Wood Stud Wall (10'-0"H) | E61: =141.81+4 -> 146
A62: 27 | B62: A-103 | C62: A-104 | D62: 2x6 P.T Bottom Plate | E62: =E61 -> 146 | F62: 5% | G62: =E62+(E62*F62) -> 153 | H62: LF | I62: $1.16 | J62: $1.74 | K62: =IF(H62<>"",I62+J62,"") -> $2.90 | L62: =G62*K62 -> $444
A63: 28 | B63: A-103 | C63: A-104 | D63: 2x6 Top Plate | E63: =E61*2 -> 292 | F63: 5% | G63: 306 | H63: LF | I63: $1.12 | J63: $1.68 | K63: $2.80 | L63: $857
A64: 29 | B64: A-103 | C64: A-104 | D64: 2x6 Wood Studs @16"O.C.(10'-0"H) | E64: =E61/1.33 -> 110 | F64: 0% | G64: 110 | H64: EA | I64: $1.12 | J64: $1.68 | K64: $2.80 | L64: $307
A65: 30 | B65: A-103 | C65: A-104 | D65: R-13 Insulation | E65: =E61*10 -> 1458 | F65: 5% | G65: 1531 | H65: SF | I65: $1.04 | J65: $1.56 | K65: $2.60 | L65: $3,981
A66: 31 | B66: A-103 | C66: A-104 | D66: 15/32" Plywood Sheathing | E66: =E61*10 -> 1458 | F66: 5% | G66: 1531 | H66: SF | I66: $1.14 | J66: $1.71 | K66: $2.85 | L66: $4,363
A67: 32 | B67: A-103 | C67: A-104 | D67: 1/2" Gypsum Board | E67: =141.81*10 -> 1418 | F67: 5% | G67: 1489 | H67: SF | I67: $0.52 | J67: $0.78 | K67: $1.30 | L67: $1,936
A68: 33 | B68: A-103 | C68: A-104 | D68: 1/2" Water Resistant Hardie Backer | E68: =4*10 -> 40 | F68: 5% | G68: =E68+(E68*F68) -> 42 | H68: SF | I68: $0.92 | J68: $1.38 | K68: =IF(H68<>"",I68+J68,"") -> $2.30 | L68: =G68*K68 -> $97
A69: 34 | B69: A-103 | C69: A-104 | D69: Acoustical Sealant | E69: =E61*2 -> 292 | F69: 5% | G69: 306 | H69: LF | I69: $0.40 | J69: $0.60 | K69: $1.00 | L69: $306
D71: 2x6 Exterior Wood Stud Wall (12'-0"H) | E71: 14
A72: 35 | B72: A-103 | C72: A-104 | D72: 2x6 P.T Bottom Plate | E72: =E71 -> 14 | F72: 5% | G72: =E72+(E72*F72) -> 15 | H72: LF | I72: $1.16 | J72: $1.74 | K72: =IF(H72<>"",I72+J72,"") -> $2.90 | L72: =G72*K72 -> $42
A73: 36 | B73: A-103 | C73: A-104 | D73: 2x6 Top Plate | E73: =E71*2 -> 28 | F73: 5% | G73: 29 | H73: LF | I73: $1.12 | J73: $1.68 | K73: $2.80 | L73: $82
A74: 37 | B74: A-103 | C74: A-104 | D74: 2x6 Wood Studs @16"O.C.(12'-0"H) | E74: =E71/1.33 -> 10 | F74: 0% | G74: 10 | H74: EA | I74: $13.44 | J74: $20.16 | K74: $33.60 | L74: $351
A75: 38 | B75: A-103 | C75: A-104 | D75: R-13 Insulation | E75: =E71*12 -> 167 | F75: 5% | G75: 175 | H75: SF | I75: $1.04 | J75: $1.56 | K75: $2.60 | L75: $455
A76: 39 | B76: A-103 | C76: A-104 | D76: 15/32" Plywood Sheathing | E76: =E71*12 -> 167 | F76: 5% | G76: 175 | H76: SF | I76: $1.14 | J76: $1.71 | K76: $2.85 | L76: $499
A77: =IF(H77<>"",1+MAX(A66:A76),"") -> 40 | B77: A-103 | C77: A-104 | D77: 1/2" Gypsum Board | E77: =E71*12 -> 167 | F77: 5% | G77: 175 | H77: SF | I77: $0.52 | J77: $0.78 | K77: $1.30 | L77: $228
A78: 41 | B78: A-103 | C78: A-104 | D78: Acoustical Sealant | E78: =E71*2 -> 28 | F78: 5% | G78: 29 | H78: LF | I78: $0.40 | J78: $0.60 | K78: $1.00 | L78: $29
D80: 2x6 Exterior Wood Stud Wall (14'-0"H) | E80: 75
A81: 42 | B81: A-103 | C81: A-104 | D81: 2x6 P.T Bottom Plate | E81: =E80 -> 75 | F81: 5% | G81: =E81+(E81*F81) -> 79 | H81: LF | I81: $1.16 | J81: $1.74 | K81: =IF(H81<>"",I81+J81,"") -> $2.90 | L81: =G81*K81 -> $230
A82: 43 | B82: A-103 | C82: A-104 | D82: 2x6 Top Plate | E82: =E80*2 -> 151 | F82: 5% | G82: 158 | H82: LF | I82: $1.12 | J82: $1.68 | K82: $2.80 | L82: $443
A83: 44 | B83: A-103 | C83: A-104 | D83: 2x6 Wood Studs @16"O.C.(14'-0"H) | E83: =E80/1.33 -> 57 | F83: 0% | G83: 57 | H83: EA | I83: $15.68 | J83: $23.52 | K83: $39.20 | L83: $2,222
A84: 45 | B84: A-103 | C84: A-104 | D84: R-13 Insulation | E84: =E80*14 -> 1056 | F84: 5% | G84: 1108 | H84: SF | I84: $1.04 | J84: $1.56 | K84: $2.60 | L84: $2,882
A85: 46 | B85: A-103 | C85: A-104 | D85: 15/32" Plywood Sheathing | E85: =E80*14 -> 1056 | F85: 5% | G85: 1108 | H85: SF | I85: $1.14 | J85: $1.71 | K85: $2.85 | L85: $3,159
A86: 47 | B86: A-103 | C86: A-104 | D86: 5/8" Type X Gypsum Wall Board | E86: =E80*14 -> 1056 | F86: 5% | G86: 1108 | H86: SF | I86: $0.56 | J86: $0.84 | K86: $1.40 | L86: $1,552
A87: 48 | B87: A-103 | C87: A-104 | D87: Acoustical Sealant | E87: =E80*2 -> 151 | F87: 5% | G87: 158 | H87: LF | I87: $0.40 | J87: $0.60 | K87: $1.00 | L87: $158
D89: 2x6 Exterior Wood Stud Wall (21'-8"H) | E89: 18
A90: 49 | B90: A-103 | C90: A-104 | D90: 2x6 P.T Bottom Plate | E90: =E89 -> 18 | F90: 5% | G90: =E90+(E90*F90) -> 18 | H90: LF | I90: $1.16 | J90: $1.74 | K90: =IF(H90<>"",I90+J90,"") -> $2.90 | L90: =G90*K90 -> $53
A91: 50 | B91: A-103 | C91: A-104 | D91: 2x6 Top Plate | E91: =E89*2 -> 35 | F91: 5% | G91: 37 | H91: LF | I91: $1.12 | J91: $1.68 | K91: $2.80 | L91: $103
A92: 51 | B92: A-103 | C92: A-104 | D92: 2x6 Wood Studs @16"O.C.(22'-0"H) | E92: =E89/1.33 -> 13 | F92: 0% | G92: 13 | H92: EA | I92: $24.64 | J92: $36.96 | K92: $61.60 | L92: $811
A93: 52 | B93: A-103 | C93: A-104 | D93: R-13 Insulation | E93: =E89*21.67 -> 379 | F93: 5% | G93: 398 | H93: SF | I93: $1.04 | J93: $1.56 | K93: $2.60 | L93: $1,035
A94: 53 | B94: A-103 | C94: A-104 | D94: 15/32" Plywood Sheathing | E94: =E89*21.67 -> 379 | F94: 5% | G94: 398 | H94: SF | I94: $1.14 | J94: $1.71 | K94: $2.85 | L94: $1,135
A95: 54 | B95: A-103 | C95: A-104 | D95: 1/2" Gypsum Board | E95: =E89*21.67 -> 379 | F95: 5% | G95: 398 | H95: SF | I95: $0.52 | J95: $0.78 | K95: $1.30 | L95: $518
A96: 55 | B96: A-103 | C96: A-104 | D96: Acoustical Sealant | E96: =E89*2 -> 35 | F96: 5% | G96: 37 | H96: LF | I96: $0.40 | J96: $0.60 | K96: $1.00 | L96: $37
D98: 2x4 Exterior Wood Stud Wall (3'-6"H) | E98: =6.1+12.6 -> 19
A99: 56 | B99: A-103 | C99: A-104 | D99: 2x4 P.T Bottom Plate | E99: =E98 -> 19 | F99: 5% | G99: =E99+(E99*F99) -> 20 | H99: LF | I99: $1.08 | J99: $1.62 | K99: =IF(H99<>"",I99+J99,"") -> $2.70 | L99: =G99*K99 -> $53
A100: 57 | B100: A-103 | C100: A-104 | D100: 2x4 Top Plate | E100: =E98*2 -> 37 | F100: 5% | G100: 39 | H100: LF | I100: $1.04 | J100: $1.56 | K100: $2.60 | L100: $102
A101: 58 | B101: A-103 | C101: A-104 | D101: 2x4 Wood Studs @16"O.C.(8'-0"H) | E101: =(E98/1.33)*3.5/8 -> 6 | F101: 0% | G101: 6 | H101: EA | I101: $8.32 | J101: $12.48 | K101: $20.80 | L101: $128
A102: 59 | B102: A-103 | C102: A-104 | D102: R-13 Insulation | E102: =E98*3.5 -> 65 | F102: 5% | G102: 69 | H102: SF | I102: $1.04 | J102: $1.56 | K102: $2.60 | L102: $179
A103: 60 | B103: A-103 | C103: A-104 | D103: 15/32" Plywood Sheathing | E103: =12.6*3.5 -> 44 | F103: 5% | G103: 46 | H103: SF | I103: $1.14 | J103: $1.71 | K103: $2.85 | L103: $132
A104: 61 | B104: A-103 | C104: A-104 | D104: 1/2" Gypsum Board | E104: =12.6*3.5+6.1*3.5*2 -> 87 | F104: 5% | G104: 91 | H104: SF | I104: $0.52 | J104: $0.78 | K104: $1.30 | L104: $118
A105: 62 | B105: A-103 | C105: A-104 | D105: Acoustical Sealant | E105: =6.1*4+12.6*2 -> 50 | F105: 5% | G105: 52 | H105: LF | I105: $0.40 | J105: $0.60 | K105: $1.00 | L105: $52
D107: 2x4 Interior Wood Stud Wall (10'-0"H) | E107: =24.5+120.1+4+6.7 -> 155
A108: 63 | B108: A-103 | C108: A-104 | D108: 2x4 P.T Bottom Plate | E108: =E107 -> 155 | F108: 5% | G108: =E108+(E108*F108) -> 163 | H108: LF | I108: $1.08 | J108: $1.62 | K108: =IF(H108<>"",I108+J108,"") -> $2.70 | L108: =G108*K108 -> $440
A109: 64 | B109: A-103 | C109: A-104 | D109: 2x4 Top Plate | E109: =E107*2 -> 311 | F109: 5% | G109: 326 | H109: LF | I109: $1.04 | J109: $1.56 | K109: $2.60 | L109: $848
A110: 65 | B110: A-103 | C110: A-104 | D110: 2x4 Wood Studs @16"O.C.(10'-0"H) | E110: =E107/1.33 -> 117 | F110: 0% | G110: 117 | H110: EA | I110: $10.40 | J110: $15.60 | K110: $26.00 | L110: $3,036
A111: 66 | B111: A-103 | C111: A-104 | D111: 1/2" Gypsum Board | E111: =120.1*10*2+24.5*10+6.7*10 -> 2714 | F111: 5% | G111: 2850 | H111: SF | I111: $0.52 | J111: $0.78 | K111: $1.30 | L111: $3,705
A112: 67 | B112: A-103 | C112: A-104 | D112: 1/2" Water Resistant Hardie Backer | E112: =24.5*10+6.7*10+4*10*2 -> 392 | F112: 5% | G112: =E112+(E112*F112) -> 412 | H112: SF | I112: $0.92 | J112: $1.38 | K112: =IF(H112<>"",I112+J112,"") -> $2.30 | L112: =G112*K112 -> $947
A113: 68 | B113: A-103 | C113: A-104 | D113: Acoustical Sealant | E113: =E107*4 -> 621 | F113: 5% | G113: 652 | H113: LF | I113: $0.40 | J113: $0.60 | K113: $1.00 | L113: $652
D115: 2x4 Interior Wood Stud Wall (14'-0"H) | E115: =5.7+8.8 -> 15
A116: 69 | B116: A-103 | C116: A-104 | D116: 2x4 P.T Bottom Plate | E116: =E115 -> 15 | F116: 5% | G116: =E116+(E116*F116) -> 15 | H116: LF | I116: $1.08 | J116: $1.62 | K116: =IF(H116<>"",I116+J116,"") -> $2.70 | L116: =G116*K116 -> $41
A117: 70 | B117: A-103 | C117: A-104 | D117: 2x4 Top Plate | E117: =E115*2 -> 29 | F117: 5% | G117: 30 | H117: LF | I117: $1.04 | J117: $1.56 | K117: $2.60 | L117: $79
A118: 71 | B118: A-103 | C118: A-104 | D118: 2x4 Wood Studs @16"O.C.(14'-0"H) | E118: =E115/1.33 -> 11 | F118: 0% | G118: 11 | H118: EA | I118: $14.56 | J118: $21.84 | K118: $36.40 | L118: $397
A119: 72 | B119: A-103 | C119: A-104 | D119: 1/2" Gypsum Board | E119: =8.8*10 -> 88 | F119: 5% | G119: 92 | H119: SF | I119: $0.52 | J119: $0.78 | K119: $1.30 | L119: $120
A120: 73 | B120: A-103 | C120: A-104 | D120: 1/2" Water Resistant Hardie Backer | E120: =5.7*10 -> 57 | F120: 5% | G120: 60 | H120: SF | I120: $0.92 | J120: $1.38 | K120: $2.30 | L120: $138
A121: 74 | B121: A-103 | C121: A-104 | D121: 5/8" Type X Gypsum Wall Board | E121: =E115*14+4*E115 -> 261 | F121: 5% | G121: 274 | H121: SF | I121: $0.56 | J121: $0.84 | K121: $1.40 | L121: $384
A122: 75 | B122: A-103 | C122: A-104 | D122: Acoustical Sealant | E122: =E115*4 -> 58 | F122: 5% | G122: 61 | H122: LF | I122: $0.40 | J122: $0.60 | K122: $1.00 | L122: $61
D124: 2x6 Interior Wood Stud Wall (10'-0"H) | E124: =8.5+54.8 -> 63
A125: 76 | B125: A-103 | C125: A-104 | D125: 2x6 P.T Bottom Plate | E125: =E124 -> 63 | F125: 5% | G125: =E125+(E125*F125) -> 66 | H125: LF | I125: $1.16 | J125: $1.74 | K125: =IF(H125<>"",I125+J125,"") -> $2.90 | L125: =G125*K125 -> $193
A126: 77 | B126: A-103 | C126: A-104 | D126: 2x6 Top Plate | E126: =E124*2 -> 127 | F126: 5% | G126: 133 | H126: LF | I126: $1.12 | J126: $1.68 | K126: $2.80 | L126: $372
A127: 78 | B127: A-103 | C127: A-104 | D127: 2x6 Wood Studs @16"O.C.(10'-0"H) | E127: =E124/1.33 -> 48 | F127: 0% | G127: 48 | H127: EA | I127: $1.12 | J127: $1.68 | K127: $2.80 | L127: $133
A128: 79 | B128: A-103 | C128: A-104 | D128: 1/2" Gypsum Board | E128: =54.8*10*2+8.5*10 -> 1181 | F128: 5% | G128: 1240 | H128: SF | I128: $0.52 | J128: $0.78 | K128: $1.30 | L128: $1,612
A129: 80 | B129: A-103 | C129: A-104 | D129: 1/2" Water Resistant Hardie Backer | E129: =8.5*10 -> 85 | F129: 5% | G129: 89 | H129: SF | I129: $0.92 | J129: $1.38 | K129: $2.30 | L129: $205
A130: 81 | B130: A-103 | C130: A-104 | D130: Acoustical Sealant | E130: =E124*4 -> 253 | F130: 5% | G130: 266 | H130: LF | I130: $0.40 | J130: $0.60 | K130: $1.00 | L130: $266
D132: Second Floor
D134: 2x4 Exterior Wood Stud Wall (10'-0"H) | E134: 160
A135: 82 | B135: A-103 | C135: A-104 | D135: 2x4 Bottom Plate | E135: =E134 -> 160 | F135: 5% | G135: =E135+(E135*F135) -> 168 | H135: LF | I135: $1.04 | J135: $1.56 | K135: =IF(H135<>"",I135+J135,"") -> $2.60 | L135: =G135*K135 -> $437
A136: 83 | B136: A-103 | C136: A-104 | D136: 2x4 Top Plate | E136: =E134*2 -> 320 | F136: 5% | G136: 336 | H136: LF | I136: $1.04 | J136: $1.56 | K136: $2.60 | L136: $874
A137: 84 | B137: A-103 | C137: A-104 | D137: 2x4 Wood Studs @16"O.C.(10'-0"H) | E137: =E134/1.33 -> 120 | F137: 0% | G137: 120 | H137: EA | I137: $10.40 | J137: $15.60 | K137: $26.00 | L137: $3,128
A138: 85 | B138: A-103 | C138: A-104 | D138: R-13 Insulation | E138: =E134*10 -> 1600 | F138: 5% | G138: 1680 | H138: SF | I138: $1.04 | J138: $1.56 | K138: $2.60 | L138: $4,368
A139: 86 | B139: A-103 | C139: A-104 | D139: 1/2" Gypsum Board | E139: =E134*10 -> 1600 | F139: 5% | G139: 1680 | H139: SF | I139: $0.52 | J139: $0.78 | K139: $1.30 | L139: $2,184
A140: 87 | B140: A-103 | C140: A-104 | D140: 15/32" Plywood Sheathing | E140: =E134*10 -> 1600 | F140: 5% | G140: 1680 | H140: SF | I140: $1.14 | J140: $1.71 | K140: $2.85 | L140: $4,788
A141: =IF(H141<>"",1+MAX(A130:A140),"") -> 88 | B141: A-103 | C141: A-104 | D141: Acoustical Sealant | E141: =E134*2 -> 320 | F141: 5% | G141: 336 | H141: LF | I141: $0.40 | J141: $0.60 | K141: $1.00 | L141: $336
D143: 2x6 Exterior Wood Stud Wall (10'-0"H) | E143: 45
A144: 89 | B144: A-103 | C144: A-104 | D144: 2x6 Bottom Plate | E144: =E143 -> 45 | F144: 5% | G144: =E144+(E144*F144) -> 47 | H144: LF | I144: $1.12 | J144: $1.68 | K144: =IF(H144<>"",I144+J144,"") -> $2.80 | L144: =G144*K144 -> $132
A145: 90 | B145: A-103 | C145: A-104 | D145: 2x6 Top Plate | E145: =E143*2 -> 90 | F145: 5% | G145: 94 | H145: LF | I145: $1.12 | J145: $1.68 | K145: $2.80 | L145: $264
A146: 91 | B146: A-103 | C146: A-104 | D146: 2x6 Wood Studs @16"O.C.(10'-0"H) | E146: =E143/1.33 -> 34 | F146: 0% | G146: 34 | H146: EA | I146: $1.12 | J146: $1.68 | K146: $2.80 | L146: $95
A147: 92 | B147: A-103 | C147: A-104 | D147: R-13 Insulation | E147: =E143*10 -> 449 | F147: 5% | G147: 471 | H147: SF | I147: $1.04 | J147: $1.56 | K147: $2.60 | L147: $1,226
A148: 93 | B148: A-103 | C148: A-104 | D148: 1/2" Gypsum Board | E148: =E143*10 -> 449 | F148: 5% | G148: 471 | H148: SF | I148: $0.52 | J148: $0.78 | K148: $1.30 | L148: $613
A149: 94 | B149: A-103 | C149: A-104 | D149: 15/32" Plywood Sheathing | E149: =E143*10 -> 449 | F149: 5% | G149: 471 | H149: SF | I149: $1.14 | J149: $1.71 | K149: $2.85 | L149: $1,344
A150: 95 | B150: A-103 | C150: A-104 | D150: Acoustical Sealant | E150: =E143*2 -> 90 | F150: 5% | G150: 94 | H150: LF | I150: $0.40 | J150: $0.60 | K150: $1.00 | L150: $94
D152: 2x4 Interior Wood Stud Wall (10'-0"H) | E152: =124.1+58.2+10.6 -> 193
A153: 96 | B153: A-103 | C153: A-104 | D153: 2x4 Bottom Plate | E153: =E152 -> 193 | F153: 5% | G153: =E153+(E153*F153) -> 203 | H153: LF | I153: $1.04 | J153: $1.56 | K153: =IF(H153<>"",I153+J153,"") -> $2.60 | L153: =G153*K153 -> $527
A154: 97 | B154: A-103 | C154: A-104 | D154: 2x4 Top Plate | E154: =E152*2 -> 386 | F154: 5% | G154: 405 | H154: LF | I154: $1.04 | J154: $1.56 | K154: $2.60 | L154: $1,053
A155: 98 | B155: A-103 | C155: A-104 | D155: 2x4 Wood Studs @16"O.C.(10'-0"H) | E155: =E152/1.33 -> 145 | F155: 0% | G155: 145 | H155: EA | I155: $10.40 | J155: $15.60 | K155: $26.00 | L155: $3,771
A156: 99 | B156: A-103 | C156: A-104 | D156: 1/2" Gypsum Board | E156: =124.1*10*2+58.2*10 -> 3064 | F156: 5% | G156: 3217 | H156: SF | I156: $0.52 | J156: $0.78 | K156: $1.30 | L156: $4,182
A157: 100 | B157: A-103 | C157: A-104 | D157: 1/2" Water Resistant Hardie Backer | E157: =58.2*10+10.6*2*10 -> 794 | F157: 5% | G157: 834 | H157: SF | I157: $0.92 | J157: $1.38 | K157: $2.30 | L157: $1,918
A158: 101 | B158: A-103 | C158: A-104 | D158: Acoustical Sealant | E158: =E152*4 -> 772 | F158: 5% | G158: 810 | H158: LF | I158: $0.40 | J158: $0.60 | K158: $1.00 | L158: $810
A160: 102 | D160: Taping | E160: =10*391 -> 3910 | F160: 5% | G160: =E160+(E160*F160) -> 4106 | H160: LF | I160: $0.02 | J160: $0.04 | K160: =IF(H160<>"",I160+J160,"") -> $0.06 | L160: =G160*K160 -> $246
A161: 103 | D161: Mudding | E161: =0.053*12515 -> 663 | F161: 5% | G161: 696 | H161: LBS | I161: $2.00 | J161: $3.00 | K161: $5.00 | L161: $3,482
A162: 104 | D162: Screws | E162: =45*391 -> 17595 | F162: 0% | G162: 17595 | H162: EA | I162: $0.01 | J162: $0.02 | K162: $0.03 | L162: $528
D164: Ceiling Finishes
D166: Drywall Ceiling
A167: 105 | B167: A-103 | C167: A-104 | D167: 1/2" Regular Sheetrock Board | E167: =2716.83+49.59 -> 2766 | F167: 5% | G167: =E167+(E167*F167) -> 2905 | H167: SF | I167: $0.88 | J167: $1.32 | K167: =IF(H167<>"",I167+J167,"") -> $2.20 | L167: =G167*K167 -> $6,390
A168: 106 | B168: A-103 | C168: A-104 | D168: 5/8" Type "X" Gypsum Board | E168: 905 | F168: 5% | G168: 950 | H168: SF | I168: $0.56 | J168: $0.84 | K168: $1.40 | L168: $1,330
A169: 107 | B169: A-103 | C169: A-104 | D169: 1/2" Water Resistant Hardie Ceiling Board | E169: 393 | F169: 5% | G169: 413 | H169: SF | I169: $1.24 | J169: $1.86 | K169: $3.10 | L169: $1,279
A170: 108 | B170: A-103 | C170: A-104 | D170: 1/2" Exterior Gypsum Board Ceiling | E170: 476 | F170: 5% | G170: 499 | H170: SF | I170: $1.12 | J170: $1.68 | K170: $2.80 | L170: $1,398
A172: 109 | D172: Taping | E172: =142*10 -> 1420 | F172: 5% | G172: =E172+(E172*F172) -> 1491 | H172: LF | I172: $0.02 | J172: $0.04 | K172: =IF(H172<>"",I172+J172,"") -> $0.06 | L172: =G172*K172 -> $89
A173: 110 | D173: Mudding | E173: =0.053*32*142 -> 241 | F173: 5% | G173: 253 | H173: LBS | I173: $2.00 | J173: $3.00 | K173: $5.00 | L173: $1,264
A174: 111 | D174: Screws | E174: =45*142 -> 6390 | F174: 0% | G174: 6390 | H174: EA | I174: $0.01 | J174: $0.02 | K174: $0.03 | L174: $192
D176: Painting
D178: Wall Paint
A179: 112 | B179: A-103 | C179: A-104 | D179: Paint on 1/2" Gypsum Wall Board | E179: =12515-916 -> 11599 | F179: 5% | G179: =E179+(E179*F179) -> 12179 | H179: SF | I179: $0.43 | J179: $0.65 | K179: =IF(H179<>"",I179+J179,"") -> $1.08 | L179: =G179*K179 -> $13,153
D181: Note: One Coat Primer and 3 Coats of Paint Assumed
D183: Ceiling Paint
A184: 113 | B184: A-103 | C184: A-104 | D184: Paint on 1/2" Ceiling Gypsum Board | E184: 3635 | F184: 5% | G184: =E184+(E184*F184) -> 3817 | H184: SF | I184: $0.53 | J184: $0.79 | K184: =IF(H184<>"",I184+J184,"") -> $1.32 | L184: =G184*K184 -> $5,038
A185: 114 | B185: A-103 | C185: A-104 | D185: Paint on 5/8" Ceiling Gypsum Board | E185: 905 | F185: 5% | G185: =E185+(E185*F185) -> 950 | H185: SF | I185: $0.53 | J185: $0.79 | K185: =IF(H185<>"",I185+J185,"") -> $1.32 | L185: =G185*K185 -> $1,254
A186: 115 | B186: A-103 | C186: A-104 | D186: Paint on 10"W Soffit Board | E186: =0.83*184.75 -> 153 | F186: 5% | G186: =E186+(E186*F186) -> 161 | H186: SF | I186: $0.53 | J186: $0.79 | K186: =IF(H186<>"",I186+J186,"") -> $1.32 | L186: =G186*K186 -> $213
D188: Note: One Coat Primer and 3 Coats of Paint Assumed
D190: Exterior Painting
A191: 116 | B191: A-200 | C191: A-201 | D191: Paint on Stucco Finish | E191: =3035.67+9.16*13.61+13.83*8.46 -> 3277 | F191: 5% | G191: =E191+(E191*F191) -> 3441 | H191: SF | I191: $0.54 | J191: $0.81 | K191: =IF(H191<>"",I191+J191,"") -> $1.34 | L191: =G191*K191 -> $4,625
A192: 117 | B192: A-200 | C192: A-201 | D192: Paint on CMU Wall | E192: 445 | F192: 5% | G192: =E192+(E192*F192) -> 467 | H192: SF | I192: $0.59 | J192: $0.89 | K192: =IF(H192<>"",I192+J192,"") -> $1.48 | L192: =G192*K192 -> $692
D194: Note: One Coat Primer and 3 Coats of Paint Assumed
D196: Railing Paint
A197: 118 | B197: A-200 | C197: A-201 | D197: Paint on Cable Railing(3'-6"H) | E197: 22 | F197: 5% | G197: =E197+(E197*F197) -> 23 | H197: LF | I197: $3.84 | J197: $5.76 | K197: =IF(H197<>"",I197+J197,"") -> $9.60 | L197: =G197*K197 -> $219
A198: 119 | B198: A-200 | C198: A-201 | D198: Paint on Guardrail(3'-4"H) | E198: 38 | F198: 5% | G198: 40 | H198: LF | I198: $3.84 | J198: $5.76 | K198: $9.60 | L198: $380
A199: 120 | B199: A-200 | C199: A-201 | D199: Paint on Handrail(3'-4"H) | E199: 37 | F199: 5% | G199: 39 | H199: LF | I199: $3.04 | J199: $4.56 | K199: $7.60 | L199: $294
A200: 121 | B200: A-200 | C200: A-201 | D200: Paint on (3'-2"H) Handrail | E200: 28 | F200: 5% | G200: =E200+(E200*F200) -> 30 | H200: LF | I200: $3.04 | J200: $4.56 | K200: =IF(H200<>"",I200+J200,"") -> $7.60 | L200: =G200*K200 -> $227
D202: Note: One Coat Primer and 3 Coats of Paint Assumed
D204: Trim Paint
A205: =IF(H205<>"",1+MAX(A194:A204),"") -> 122 | B205: A-103 | C205: A-104 | D205: Paint on 4"W Window Trim | E205: 415 | F205: 5% | G205: =E205+(E205*F205) -> 436 | H205: LF | I205: $0.42 | J205: $0.62 | K205: =IF(H205<>"",I205+J205,"") -> $1.04 | L205: =G205*K205 -> $453
A206: 123 | B206: A-103 | C206: A-104 | D206: Paint on 7"H Fascia Trim | E206: 398 | F206: 5% | G206: 418 | H206: LF | I206: $0.54 | J206: $0.82 | K206: $1.36 | L206: $568
A207: 124 | B207: A-103 | C207: A-104 | D207: Paint on Door Trim | E207: 966 | F207: 5% | G207: =E207+(E207*F207) -> 1015 | H207: LF | I207: $0.35 | J207: $0.53 | K207: =IF(H207<>"",I207+J207,"") -> $0.88 | L207: =G207*K207 -> $893
A208: 125 | B208: A-103 | C208: A-104 | D208: Paint on Wall Base | E208: 688 | F208: 5% | G208: =E208+(E208*F208) -> 722 | H208: LF | I208: $0.38 | J208: $0.58 | K208: =IF(H208<>"",I208+J208,"") -> $0.96 | L208: =G208*K208 -> $694
D210: Note: One Coat Primer and 3 Coats of Paint Assumed
D212: Door Paint
A213: 126 | B213: A-103 | C213: A-104 | D213: Paint on (2'-6"x5'-8") Door With Frame | E213: 1 | F213: 0% | G213: =E213+(E213*F213) -> 1 | H213: EA | I213: $18.14 | J213: $27.22 | K213: =IF(H213<>"",I213+J213,"") -> $45.36 | L213: =G213*K213 -> $45
A214: 127 | B214: A-103 | C214: A-104 | D214: Paint on (13'-4"x8'-4") Door With Frame | E214: 1 | F214: 0% | G214: 1 | H214: EA | I214: $64.00 | J214: $96.00 | K214: $160.00 | L214: $160
A215: 128 | B215: A-103 | C215: A-104 | D215: Paint on (2'-2"x6'-8") Door With Frame | E215: 2 | F215: 0% | G215: 2 | H215: EA | I215: $18.53 | J215: $27.79 | K215: $46.32 | L215: $93
A216: 129 | B216: A-103 | C216: A-104 | D216: Paint on (2'-6"x6'-8") Door With Frame | E216: 6 | F216: 0% | G216: 6 | H216: EA | I216: $21.34 | J216: $32.02 | K216: $53.36 | L216: $320
A217: 130 | B217: A-103 | C217: A-104 | D217: Paint on (3'-4"x6'-8") Door With Frame | E217: 2 | F217: 0% | G217: 2 | H217: EA | I217: $28.43 | J217: $42.65 | K217: $71.08 | L217: $142
A218: 131 | B218: A-103 | C218: A-104 | D218: Paint on (2'-2"x6'-8") Door With Frame | E218: 3 | F218: 0% | G218: 3 | H218: EA | I218: $18.53 | J218: $27.79 | K218: $46.32 | L218: $139
A219: 132 | B219: A-103 | C219: A-104 | D219: Paint on (4'-2"x6'-8") Door With Frame | E219: 6 | F219: 0% | G219: 6 | H219: EA | I219: $35.60 | J219: $53.40 | K219: $89.00 | L219: $534
A220: 133 | B220: A-103 | C220: A-104 | D220: Paint on (6'-8"x8'-4") Door With Frame | E220: 1 | F220: 0% | G220: 1 | H220: EA | I220: $56.00 | J220: $84.00 | K220: $140.00 | L220: $140
A221: 134 | B221: A-103 | C221: A-104 | D221: Paint on (1'-10"x6'-8") Door With Frame | E221: 2 | F221: 0% | G221: 2 | H221: EA | I221: $15.62 | J221: $23.44 | K221: $39.06 | L221: $78
A222: 135 | B222: A-103 | C222: A-104 | D222: Paint on (1'-8"x6'-8") Door With Frame | E222: 3 | F222: 0% | G222: 3 | H222: EA | I222: $14.26 | J222: $21.39 | K222: $35.64 | L222: $107
A223: 136 | B223: A-103 | C223: A-104 | D223: Paint on (2'-4"x6'-8") Door With Frame | E223: 2 | F223: 0% | G223: 2 | H223: EA | I223: $19.89 | J223: $29.84 | K223: $49.73 | L223: $99
D225: Note: All Doors Assumed To be Wood with Wood Frame
D227: Note: One Coat Primer and 3 Coats of Paint Assumed
D229: Wall Tiles
A230: 137 | B230: A-103 | C230: A-104 | D230: Wall Tiles Note: Assumed | E230: =8*43.03+111.18*4.67 -> 863 | F230: 5% | G230: =E230+(E230*F230) -> 907 | H230: SF | I230: $4.40 | J230: $9.60 | K230: =IF(H230<>"",I230+J230,"") -> $14.00 | L230: =G230*K230 -> $12,693
A231: 138 | B231: A-103 | C231: A-104 | D231: 4"H Backsplash | E231: 23 | F231: 5% | G231: =E231+(E231*F231) -> 24 | H231: LF | I231: $2.72 | J231: $4.08 | K231: =IF(H231<>"",I231+J231,"") -> $6.80 | L231: =G231*K231 -> $165
A232: 139 | B232: A-103 | C232: A-104 | D232: Kitchen Backsplash Note: Assumed | E232: 30 | F232: 5% | G232: =E232+(E232*F232) -> 31 | H232: SF | I232: $4.40 | J232: $9.60 | K232: =IF(H232<>"",I232+J232,"") -> $14.00 | L232: =G232*K232 -> $438
A234: =IF(H234<>"",1+MAX(A169:A233),"") ->  | D234: SUBTOTAL | I234: =IF(H234<>"",0.4*K234,"") ->  | J234: =IF(H234<>"",K234-I234,"") ->  | M234: =SUM(L26:L233) -> $175,381
A235: =IF(H235<>"",1+MAX(A48:A234),"") ->  | D235: Paint on Trims
A236: =IF(H236<>"",1+MAX(A48:A235),"") -> 140 | B236: A6.0 | C236: A6.01 | D236: Paint on 5/4x4 Trim | E236: 938 | F236: 5% | G236: =E236+(E236*F236) -> 985 | H236: LF | I236: 0 | J236: 0 | K236: =IF(H236<>"",I236+J236,"") -> 0 | L236: =G236*K236 -> 0
A237: =IF(H237<>"",1+MAX(A48:A236),"") -> 141 | B237: A6.0 | C237: A6.01 | D237: Paint on 5/4x8 Trim | E237: 115 | F237: 5% | G237: =E237+(E237*F237) -> 121 | H237: LF | I237: 0 | J237: 0 | K237: =IF(H237<>"",I237+J237,"") -> 0 | L237: =G237*K237 -> 0
A238: =IF(H238<>"",1+MAX(A48:A237),"") -> 142 | B238: A6.0 | C238: A6.01 | D238: Paint on 5/4x12 Trim | E238: 38 | F238: 5% | G238: =E238+(E238*F238) -> 40 | H238: LF | I238: 0 | J238: 0 | K238: =IF(H238<>"",I238+J238,"") -> 0 | L238: =G238*K238 -> 0
A239: =IF(H239<>"",1+MAX(A48:A238),"") -> 143 | B239: A6.0 | C239: A6.01 | D239: Paint on 8"W Fascia | E239: 526 | F239: 5% | G239: =E239+(E239*F239) -> 553 | H239: LF | I239: 0 | J239: 0 | K239: =IF(H239<>"",I239+J239,"") -> 0 | L239: =G239*K239 -> 0
A240: 144 | B240: A6.0 | C240: A6.01 | D240: Paint on 6"W Rake Board | E240: 171 | F240: 5% | G240: =E240+(E240*F240) -> 179 | H240: LF | I240: 0 | J240: 0 | K240: =IF(H240<>"",I240+J240,"") -> 0 | L240: =G240*K240 -> 0
A241: 145 | B241: A6.0 | C241: A6.01 | D241: Paint on 8"W FC Trim | E241: 384 | F241: 5% | G241: =E241+(E241*F241) -> 404 | H241: LF | I241: 0 | J241: 0 | K241: =IF(H241<>"",I241+J241,"") -> 0 | L241: =G241*K241 -> 0
D243: Site Paint
A245: =IF(H245<>"",1+MAX(A235:A244),"") ->  | D245: Stripping
A246: =IF(H246<>"",1+MAX(A235:A245),"") -> 146 | B246: C-4 | C246: C-4 | D246: 4"W White Stipe | E246: 2091 | F246: 5% | G246: =E246+(E246*F246) -> 2196 | H246: LF | I246: 0 | J246: 0 | K246: =IF(H246<>"",I246+J246,"") -> 0 | L246: =G246*K246 -> 0
A247: 147 | B247: C-4 | C247: C-4 | D247: 6"W White Stipe | E247: 220 | F247: 5% | G247: =E247+(E247*F247) -> 231 | H247: LF | I247: 0 | J247: 0 | K247: =IF(H247<>"",I247+J247,"") -> 0 | L247: =G247*K247 -> 0
A248: 148 | B248: C-4 | C248: C-4 | D248: (6'-6"x5'-6")Accessible Parking Symbol | E248: 2 | F248: 5% | G248: =E248+(E248*F248) -> 2 | H248: EA | I248: 0 | J248: 0 | K248: =IF(H248<>"",I248+J248,"") -> 0 | L248: =G248*K248 -> 0
... 16 more rows

Sheet UJ (hidden)
C2: PROJECT: | D2: 625 PARK AVE PHASE 1B
C3: ADDRESS: | D3: 625 PARK AVENUE,
D4: NEW YORK, NY-10065.
H6: DATE | I6: =TODAY() -> 2026-07-28
A7: ITEM # | B7: CSI SEC. | C7: DESCRIPTION | D7: QTY. | E7: WASTE | F7: QTY. W/ WASTE | G7: UNIT | H7: UNIT COST | I7: TRADE COST | L7: Single side areas
C8: SCOPE OF WORK | L8: Dry | M8: Wet
A9: 1 | B9: 09 29 | C9: 2 layered 5/8" thick USG fiberock brand panels for walls and ceilings. | D9: 11,635 | E9: 10% | F9: =D9*(1+E9) -> 12,799 | G9: sf | H9: $4.0 | I9: =H9*F9 -> $51,194 | J9: Type 1+Type 4+Type 6+ceiling | K9: Type 1 | L9: =2520-80 -> 2440 | M9: 280 | N9: =(2440*2+290*2+2345+3830) -> 11635
A10: 2 | B10: 09 29 | C10: 2 layerd 5/8" thick USG fiberock aqua tough brand panels for wall and ceilings in wet areas. | D10: 1,185 | E10: 10% | F10: =D10*(1+E10) -> 1,304 | G10: sf | H10: $4.5 | I10: =H10*F10 -> $5,866 | J10: Type 1+Type 4+Type 6+wet ceiling | K10: Type 2 | L10: =210-80 -> 130 | M10: 80 | N10: =(280*2+325+300) -> 1185
A11: 3 | B11: 09 29 | C11: 2 layered 2 HR rated 5/8" thick USG fiberock brand panels for walls. | D11: 260 | E11: 10% | F11: =D11*(1+E11) -> 286 | G11: sf | H11: $4.5 | I11: =H11*F11 -> $1,287 | J11: Type 2 | K11: Type 3 | N11: =130*2 -> 260
A12: 4 | B12: 09 29 | C12: 2 layered 2 HR rated 5/8" thick USG fiberock aqua tough brand panels for walls in wet areas. | D12: 160 | E12: 10% | F12: 176 | G12: sf | H12: $5.0 | I12: =H12*F12 -> $880 | J12: Type 2 | K12: Type 4 | L12: 290 | N12: =80*2 -> 160
A13: 5 | B13: 09 29 | C13: 3 layered 3 HR rated 5/8" thick USG fiberock brand panels for walls. | D13: 300 | E13: 10% | F13: 330 | G13: sf | H13: $4.0 | I13: =H13*F13 -> $1,320 | J13: Type 7 | K13: Type 5 | L13: 1200 | N13: =150*2 -> 300
A14: 6 | B14: 09 26 | C14: 3/32" thick gypsum veneer plaster skim coat. | D14: 14,740 | E14: 10% | F14: 16,214 | G14: sf | H14: $4.0 | I14: =H14*F14 -> $64,856 | J14: Type 1+Type 2+ Type 4+Type 5+Type 6 +Type 7 | K14: Type 6 | L14: =2670-325 -> 2345 | M14: 325 | N14: =SUM(N9:N13)+L13 -> 14740 | O14: =SUM(L9:M10)*2+L13+SUM(L14:M14)+L15*2+SUM(L17:M17)+L12*2 -> 14740 | P14: =N14-O14 -> 0
A15: 7 | B15: 09 22 16 | C15: 3-5/8" steel studs 20 GA @ 16" O.C. | D15: 5,750 | E15: 10% | F15: 6,325 | G15: sf | H15: $2.5 | I15: =H15*F15 -> $15,813 | J15: Type 1+Type 2+Type 6+Type 7 | K15: Type 7 | L15: 150 | N15: =SUM(L9:M10)+SUM(L14:M15) -> 5750
A16: 8 | B16: 10 22 16 | C16: 1-5/8" steel studs 20 GA @ 12" O.C. | D16: 290 | E16: 10% | F16: 319 | G16: sf | H16: $2.0 | I16: $638 | J16: Type 4 | K16: Type 8 | L16: 20
A17: 8 | B17: 09 22 26 | C17: Ceiling suspension system. | D17: 4,130 | E17: 10% | F17: 4,543 | G17: sf | H17: $3.0 | I17: =H17*F17 -> $13,629 | K17: Ceiling | L17: 3830 | M17: 300 | N17: =SUM(L17:M17) -> 4130
A18: 9 | B18: 07 21 16 | C18: Batt Insulation. | D18: 5,600 | E18: 5% | F18: 5,880 | G18: sf | H18: $2.0 | I18: =H18*F18 -> $11,760 | J18: Type 1+Type 2+ Type 6 | N18: =SUM(L9:M10)+SUM(L14:M14) -> 5600
A19: 10 | B19: 07 21 16 | C19: Batt Insulation type SAFB. | D19: 150 | E19: 10% | F19: 165 | G19: sf | H19: $2.2 | I19: =H19*F19 -> $363 | J19: Type 7 | N19: 150
A21: SUB TOTAL | I21: =SUM(I9:I19) -> $167,605
A22: INSURANCE (3%) | I22: =(3/100)*I21 -> $5,028
A23: TOTAL BASE BID | I23: =SUM(I21:I22) -> $172,633
C25: Exclusions
B26: 1 | C26: Mouldings
B27: 2 | C27: Patch work
B28: 3 | C28: Fixtures
B29: 4 | C29: Electrical work
B30: 5 | C30: Stone and/or tile work
B31: 6 | C31: Wall type 8 [no details on provided on the drawing]

Sheet DETAIL (2) (hidden)
B2: PROJECT: | C2: 625 PARK AVE PHASE 1B
B3: ADDRESS: | C3: 625 PARK AVENUE
C4: NEW YORK, NY 10065
E6: DATE | F6: =TODAY() -> 2026-07-28
A7: ITEM # | B7: DESCRIPTION | C7: UNIT COST | D7: QTY. | E7: UNIT | F7: TRADE COST
B8: SCOPE OF WORK
A9: 1 | B9: 5/8" 2 layered USG fiberock brand panels. | D9: =((2358+277+2077)-644)+3830 -> 7,898 | E9: sf | F9: =C9*D9 -> 0 | G9: Type 1+Type 4+Type 6+ceiling
A10: 2 | B10: 5/8" 2 layered USG fiberock aqua tough brand panels. (Wet area). | D10: =644+292 -> 936 | E10: sf | F10: =C10*D10 -> 0 | G10: Type 1+Type 4+Type 6+wet ceiling | I10: Height 9'6"
A11: 3 | B11: 2 HR rated 5/8" 2 layered USG fiberock brand panels. | D11: =206-78 -> 128 | E11: sf | F11: 0 | G11: Type 2 | I11: For Doors & Cabinets 1'3"
A12: 4 | B12: 2 HR rated 5/8" 2 layered USG fiberock aqua tough brand panels. (Wet area). | D12: 78 | E12: sf | F12: 0 | G12: Type 2
A13: 5 | B13: 3 HR rated 5/8" 3 layered USG fiberock brand panels. | D13: 148 | E13: sf | F13: 0 | G13: Type 7
A14: 6 | B14: 3/32" thick gypsum veneer plaster skim coat. | D14: =2538+206+277+1343+2077+148 -> 6,589 | E14: sf | F14: 0 | G14: Type 1+Type 2+ Type 4+Type 5+Type 6 +Type 7
A15: 7 | B15: 3 5/8" steel studs 20 GA @ 16" O.C. | D15: 4,968 | E15: sf | F15: 0 | G15: Type 1+Type 2+Type 6+Type 7
A16: 8 | B16: 1 5/8" steel studs 20 GA @ 12" O.C. | D16: 277 | E16: sf | F16: 0 | G16: Type 4
A17: 9 | B17: Batt sound Insulation. | D17: =2538+206+2077 -> 4,821 | E17: sf | F17: 0 | G17: Type 1+Type 2+ Type 6
A18: 10 | B18: Batt sound Insulation type SAFB. | D18: 148 | E18: sf | F18: 0 | G18: Type 7 | H18: QTY Details
H19: Type 1 | I19: 2538 | J19: 2520
A20: TOTAL | F20: =SUM(F9:F18) -> 0 | H20: Type 2 | I20: 205 | J20: 206
B21: Exclusions | H21: Type 3 | I21: N/A
A22: 1 | B22: Mouldings | H22: Type 4 | I22: 277 | J22: 290
A23: 2 | B23: Patch work | H23: Type 5 | I23: 1342 | J23: 1200
A24: 3 | B24: Fixtures | H24: Type 6 | I24: 2077 | J24: 2670
A25: 4 | B25: Electrical work | H25: Type 7 | I25: 148 | J25: 150
A26: 5 | B26: Stone and/or tile work | H26: Type 8 | I26: 22 | J26: 20 | K26: No details given
A27: 6 | H27: Ceiling | I27: 3830
H28: Wet Ceiling | I28: 292
B31: DETAILS
B32: Type 1- Interior Partition | G32: Type 2- 2HR rated Interior Partition | H32: Type
B33: 2 layers 5/8' USG fiberock brand panels (Fiberock aqua tough brand at all wet areas) Glue second layer, finished with 3-32" thick gypsum veneer plaster skim coat. 3 5/8" Stl studs 20 GA @16" O.C with Batt insulation. 2 layers 5/8" USG fiberock brand panels(Fiberock aqua tough brand at all wet areas finished 3-32" thick gypsum veneer plaster skim coat | G33: 2 layers 5/8' USG fiberock brand panels (Fiberock aqua tough brand at all wet areas) Glue second layer, finished with 3-32" thick gypsum veneer plaster skim coat. 3 5/8" Stl studs 20 GA @16" O.C with Batt insulation. 2 layers 5/8" USG fiberock brand panels(Fiberock aqua tough brand at all wet areas finished 3-32" thick gypsum veneer plaster skim coat
B35: TYPE 3 Interior partition at chase | G35: TYPE 4 Pocket door partition
B36: 2 layer 5/8" USG fiberock brand panels ( Fiberock aqua tough brand at all wet areas ) Glue second layer fill batt insulation, finished with 3/32" thick gypsum veneer plaster skim coat. 20 Ga 2-1/2" mtl studs @ 16 O.C. with batt insulation. Pipe chase space. 2 layers 5/8" USG fiberock brand panels (Fiberock aqua tough brand at all wet areas finished with 3/32" thick gypsum veneer plaster skim coat. | G36: 2 Layers 5/8" USG fiberock brand panels (Fiberock Aqua tough brand at all wet areas) Glue second layer, Finished with 3/32" thick gypsum veneer plaster skim coat. 1 5/8" 20 Ga stl studs @12 O.C. 2 layer 5/8" USG fiberock brand panels (fiberock aqua tough brand at wet areas) finished with 3/32" thick gypsum veneer plaster skim coat.
B38: TYPE 5 Existing wall skim coat | G38: TYPE 6 EXISTING WALL- Furring
B39: Apply 3/32" Thick gypsum veneer skim coat. Fill and smooth all imperfections | G39: 3 5/8" 20 Ga stl studs @ 16 O.C. 2 layers 5/8" USG fiberock brand panels dimensions from exterior wall to be varified with architect. Fill with Batt insulation, Finished with 3/32" Thick Gypsum veneer plaster skim coat
B40: TYPE 7 Interior Partition- 3 Hr rated
B41: 3 layer 5/8" USG fiberock brand panels, glue third layer finished with 3/32" thick gypsum veneer plaster skim coat. 3 5/8" stl studs 20 GA @16"O.C. Batt insulation Type SAFB. 3 layer 5/8" USG fiberock brand panels, glue third layer finished with 3-32" thick gypsum veneer plaster skim coat
